{"text_format":"1","workbook":"xlsx","n_sheets":5,"sheets":["Как пользоваться","База","Настройки","Накладная","Остатки"],"not_rendered":{"charts":0,"images":0,"macros":0,"external_links":0,"defined_names":0,"comments":0,"pivot_tables":1},"unopened":[],"bounds":{"document_bytes":16777216,"sheet_cells":100000,"rows_first":2000,"rows_last":500,"rows_between":2000,"halvings":0,"cell_chars":16384,"cell_head_chars":4096},"cells_cut":0,"cells_raw":0,"read":"whole","date_system":"1900"}

{"sheet":"Как пользоваться","index":0,"n_rows":6,"n_cols":1,"rows_kept":6,"cut":false,"hidden":false,"merged":[]}
["Идем в настройки, заполняем таблички(все, кроме серых ячеек)"]
["Идем в базу, заполняем там строчки(все, кроме серых ячеек)"]
["Если будет заполнена стоимость закупа, то это будет пополнение склада, и списание, если указана стоимость продажи"]
["остатки можно увидеть в самой базе, в прайсе(в настройках) и на листе остатки, сводная."]
["Для печати в накладную, поставить 1 перед строчкой, она будет распечатана"]
["Поигрались? Теперь принимаем пожелания по улучшению :)"]

{"sheet":"База","index":1,"n_rows":6,"n_cols":14,"rows_kept":6,"cut":false,"hidden":false,"merged":[]}
["Пометка для накладной","Дата","менеджер","клиент","наименование","ед изм","количество","Стоимость закупа по прайсу","Стоимость закупа","Итоговая стоимость закупа","Стоимость реализации по прайсу","Стоимость реализации","Итоговая стоимость реализации","Остаток"]
[null,"2017-01-19","Роман","Погосов","Гринфилд голден цейлон 25п",{"$f":"VLOOKUP(база[[#This Row],[наименование]],прайс[],2,FALSE)","v":"шт"},10,{"$f":"VLOOKUP(база[[#This Row],[наименование]],прайс[],3,FALSE)","v":23},1,{"$f":"база[[#This Row],[Стоимость закупа по прайсу]]*база[[#This Row],[Стоимость закупа]]","v":23},{"$f":"VLOOKUP(база[[#This Row],[наименование]],прайс[],4,FALSE)","v":29.9},null,{"$f":"база[[#This Row],[Стоимость реализации по прайсу]]*база[[#This Row],[Стоимость реализации]]","v":0},{"$f":"SUM((база[[#This Row],[наименование]]=база[наименование])*(база[Стоимость закупа]<>0)*база[количество])-SUM((база[[#This Row],[наименование]]=база[наименование])*(база[Стоимость реализации]<>0)*база[количество])","v":2}]
[1,"2017-01-19","Роман","Погосов","Ахмад черн 25п",{"$f":"VLOOKUP(база[[#This Row],[наименование]],прайс[],2,FALSE)","v":"шт"},50,{"$f":"VLOOKUP(база[[#This Row],[наименование]],прайс[],3,FALSE)","v":52},11,{"$f":"база[[#This Row],[Стоимость закупа по прайсу]]*база[[#This Row],[Стоимость закупа]]","v":572},{"$f":"VLOOKUP(база[[#This Row],[наименование]],прайс[],4,FALSE)","v":67.599999999999994},null,{"$f":"база[[#This Row],[Стоимость реализации по прайсу]]*база[[#This Row],[Стоимость реализации]]","v":0},{"$f":"SUM((база[[#This Row],[наименование]]=база[наименование])*(база[Стоимость закупа]<>0)*база[количество])-SUM((база[[#This Row],[наименование]]=база[наименование])*(база[Стоимость реализации]<>0)*база[количество])","v":40}]
[null,"2017-01-19","Виктор","Погосов","Гринфилд голден цейлон 25п",{"$f":"VLOOKUP(база[[#This Row],[наименование]],прайс[],2,FALSE)","v":"шт"},13,{"$f":"VLOOKUP(база[[#This Row],[наименование]],прайс[],3,FALSE)","v":23},10,{"$f":"база[[#This Row],[Стоимость закупа по прайсу]]*база[[#This Row],[Стоимость закупа]]","v":230},{"$f":"VLOOKUP(база[[#This Row],[наименование]],прайс[],4,FALSE)","v":29.9},null,{"$f":"база[[#This Row],[Стоимость реализации по прайсу]]*база[[#This Row],[Стоимость реализации]]","v":0},{"$f":"SUM((база[[#This Row],[наименование]]=база[наименование])*(база[Стоимость закупа]<>0)*база[количество])-SUM((база[[#This Row],[наименование]]=база[наименование])*(база[Стоимость реализации]<>0)*база[количество])","v":2}]
[null,"2017-01-19","Виктор","Погосов","Гринфилд голден цейлон 25п",{"$f":"VLOOKUP(база[[#This Row],[наименование]],прайс[],2,FALSE)","v":"шт"},21,{"$f":"VLOOKUP(база[[#This Row],[наименование]],прайс[],3,FALSE)","v":23},null,{"$f":"база[[#This Row],[Стоимость закупа по прайсу]]*база[[#This Row],[Стоимость закупа]]","v":0},{"$f":"VLOOKUP(база[[#This Row],[наименование]],прайс[],4,FALSE)","v":29.9},30,{"$f":"база[[#This Row],[Стоимость реализации по прайсу]]*база[[#This Row],[Стоимость реализации]]","v":897},{"$f":"SUM((база[[#This Row],[наименование]]=база[наименование])*(база[Стоимость закупа]<>0)*база[количество])-SUM((база[[#This Row],[наименование]]=база[наименование])*(база[Стоимость реализации]<>0)*база[количество])","v":2}]
[null,"2017-01-19","Максим","Погосов","Ахмад черн 25п",{"$f":"VLOOKUP(база[[#This Row],[наименование]],прайс[],2,FALSE)","v":"шт"},10,{"$f":"VLOOKUP(база[[#This Row],[наименование]],прайс[],3,FALSE)","v":52},null,{"$f":"база[[#This Row],[Стоимость закупа по прайсу]]*база[[#This Row],[Стоимость закупа]]","v":0},{"$f":"VLOOKUP(база[[#This Row],[наименование]],прайс[],4,FALSE)","v":67.599999999999994},70,{"$f":"база[[#This Row],[Стоимость реализации по прайсу]]*база[[#This Row],[Стоимость реализации]]","v":4732},{"$f":"SUM((база[[#This Row],[наименование]]=база[наименование])*(база[Стоимость закупа]<>0)*база[количество])-SUM((база[[#This Row],[наименование]]=база[наименование])*(база[Стоимость реализации]<>0)*база[количество])","v":40}]

{"sheet":"Настройки","index":2,"n_rows":21,"n_cols":11,"rows_kept":21,"cut":false,"hidden":false,"merged":[]}
["менеджеры",null,"ИП","Адресс",null,"наименование","ед. изм.","Закуп","Реализация","Остаток","Стоимость остатка"]
["Роман",null,"Погосов",null,null,"Гринфилд голден цейлон 25п","шт",23,{"$f":"прайс[[#This Row],[Закуп]]+прайс[[#This Row],[Закуп]]*30%","v":29.9},{"$f":"SUM((прайс[[#This Row],[наименование]]=база[наименование])*(база[Стоимость закупа]<>0)*база[количество])-SUM((прайс[[#This Row],[наименование]]=база[наименование])*(база[Стоимость реализации]<>0)*база[количество])","v":2},{"$f":"SUM((прайс[[#This Row],[наименование]]=база[наименование])*(база[Итоговая стоимость закупа]))","v":253}]
["Виктор",null,"Гаспорян",null,null,"Липтон черн. 25п","шт",56,{"$f":"прайс[[#This Row],[Закуп]]+прайс[[#This Row],[Закуп]]*30%","v":72.8},{"$f":"SUM((прайс[[#This Row],[наименование]]=база[наименование])*(база[Стоимость закупа]<>0)*база[количество])-SUM((прайс[[#This Row],[наименование]]=база[наименование])*(база[Стоимость реализации]<>0)*база[количество])","v":0},{"$f":"SUM((прайс[[#This Row],[наименование]]=база[наименование])*(база[Итоговая стоимость закупа]))","v":0}]
["Максим",null,"Редько",null,null,"Ахмад черн 25п","шт",52,{"$f":"прайс[[#This Row],[Закуп]]+прайс[[#This Row],[Закуп]]*30%","v":67.599999999999994},{"$f":"SUM((прайс[[#This Row],[наименование]]=база[наименование])*(база[Стоимость закупа]<>0)*база[количество])-SUM((прайс[[#This Row],[наименование]]=база[наименование])*(база[Стоимость реализации]<>0)*база[количество])","v":40},{"$f":"SUM((прайс[[#This Row],[наименование]]=база[наименование])*(база[Итоговая стоимость закупа]))","v":572}]
[null,null,"Саванов",null,null,"Кофе Черная Карта Голд м\\у 75гр.(12шт)","шт",94,{"$f":"прайс[[#This Row],[Закуп]]+прайс[[#This Row],[Закуп]]*30%","v":122.2},{"$f":"SUM((прайс[[#This Row],[наименование]]=база[наименование])*(база[Стоимость закупа]<>0)*база[количество])-SUM((прайс[[#This Row],[наименование]]=база[наименование])*(база[Стоимость реализации]<>0)*база[количество])","v":0},{"$f":"SUM((прайс[[#This Row],[наименование]]=база[наименование])*(база[Итоговая стоимость закупа]))","v":0}]
[null,null,"Полежаева Кондитерка",null,null,"Кофе Черная Карта Голд м\\у 150гр.(6шт)","шт",98,{"$f":"прайс[[#This Row],[Закуп]]+прайс[[#This Row],[Закуп]]*30%","v":127.4},{"$f":"SUM((прайс[[#This Row],[наименование]]=база[наименование])*(база[Стоимость закупа]<>0)*база[количество])-SUM((прайс[[#This Row],[наименование]]=база[наименование])*(база[Стоимость реализации]<>0)*база[количество])","v":0},{"$f":"SUM((прайс[[#This Row],[наименование]]=база[наименование])*(база[Итоговая стоимость закупа]))","v":0}]
[null,null,"Обора 30",null,null,"Кофе Черная Карта Голд ст\\б 95гр (12шт)","шт",63,{"$f":"прайс[[#This Row],[Закуп]]+прайс[[#This Row],[Закуп]]*30%","v":81.900000000000006},{"$f":"SUM((прайс[[#This Row],[наименование]]=база[наименование])*(база[Стоимость закупа]<>0)*база[количество])-SUM((прайс[[#This Row],[наименование]]=база[наименование])*(база[Стоимость реализации]<>0)*база[количество])","v":0},{"$f":"SUM((прайс[[#This Row],[наименование]]=база[наименование])*(база[Итоговая стоимость закупа]))","v":0}]
[null,null,"Обора 58",null,null,"Кофе Черная Карта Голд ст\\б 47гр. (12шт)","шт",85,{"$f":"прайс[[#This Row],[Закуп]]+прайс[[#This Row],[Закуп]]*30%","v":110.5},{"$f":"SUM((прайс[[#This Row],[наименование]]=база[наименование])*(база[Стоимость закупа]<>0)*база[количество])-SUM((прайс[[#This Row],[наименование]]=база[наименование])*(база[Стоимость реализации]<>0)*база[количество])","v":0},{"$f":"SUM((прайс[[#This Row],[наименование]]=база[наименование])*(база[Итоговая стоимость закупа]))","v":0}]
[null,null,"Бешта",null,null,"Кофе Нескафе Голд 47.5гр. Ст\\б (12шт)","шт",38,{"$f":"прайс[[#This Row],[Закуп]]+прайс[[#This Row],[Закуп]]*30%","v":49.4},{"$f":"SUM((прайс[[#This Row],[наименование]]=база[наименование])*(база[Стоимость закупа]<>0)*база[количество])-SUM((прайс[[#This Row],[наименование]]=база[наименование])*(база[Стоимость реализации]<>0)*база[количество])","v":0},{"$f":"SUM((прайс[[#This Row],[наименование]]=база[наименование])*(база[Итоговая стоимость закупа]))","v":0}]
[null,null,"Самигулина",null,null,"Кофе Нескафе Голд 95гр ст\\б (12шт)","шт",87,{"$f":"прайс[[#This Row],[Закуп]]+прайс[[#This Row],[Закуп]]*30%","v":113.1},{"$f":"SUM((прайс[[#This Row],[наименование]]=база[наименование])*(база[Стоимость закупа]<>0)*база[количество])-SUM((прайс[[#This Row],[наименование]]=база[наименование])*(база[Стоимость реализации]<>0)*база[количество])","v":0},{"$f":"SUM((прайс[[#This Row],[наименование]]=база[наименование])*(база[Итоговая стоимость закупа]))","v":0}]
[null,null,"Саркисьян",null,null,"Кофе Нескафе Голд м\\у 150гр (12шт)","шт",84,{"$f":"прайс[[#This Row],[Закуп]]+прайс[[#This Row],[Закуп]]*30%","v":109.2},{"$f":"SUM((прайс[[#This Row],[наименование]]=база[наименование])*(база[Стоимость закупа]<>0)*база[количество])-SUM((прайс[[#This Row],[наименование]]=база[наименование])*(база[Стоимость реализации]<>0)*база[количество])","v":0},{"$f":"SUM((прайс[[#This Row],[наименование]]=база[наименование])*(база[Итоговая стоимость закупа]))","v":0}]
[null,null,"Палий",null,null,"Кофе Нескафе Голд м\\у 75гр (12шт)","шт",70,{"$f":"прайс[[#This Row],[Закуп]]+прайс[[#This Row],[Закуп]]*30%","v":91},{"$f":"SUM((прайс[[#This Row],[наименование]]=база[наименование])*(база[Стоимость закупа]<>0)*база[количество])-SUM((прайс[[#This Row],[наименование]]=база[наименование])*(база[Стоимость реализации]<>0)*база[количество])","v":0},{"$f":"SUM((прайс[[#This Row],[наименование]]=база[наименование])*(база[Итоговая стоимость закупа]))","v":0}]
[null,null,"Никитенко",null,null,"Кофе Нескафе Класик м\\у 150гр (12шт)","шт",66,{"$f":"прайс[[#This Row],[Закуп]]+прайс[[#This Row],[Закуп]]*30%","v":85.8},{"$f":"SUM((прайс[[#This Row],[наименование]]=база[наименование])*(база[Стоимость закупа]<>0)*база[количество])-SUM((прайс[[#This Row],[наименование]]=база[наименование])*(база[Стоимость реализации]<>0)*база[количество])","v":0},{"$f":"SUM((прайс[[#This Row],[наименование]]=база[наименование])*(база[Итоговая стоимость закупа]))","v":0}]
[null,null,"Осокина",null,null,"Кофе Нескафе Класик м\\у 75гр (12шт)","шт",35,{"$f":"прайс[[#This Row],[Закуп]]+прайс[[#This Row],[Закуп]]*30%","v":45.5},{"$f":"SUM((прайс[[#This Row],[наименование]]=база[наименование])*(база[Стоимость закупа]<>0)*база[количество])-SUM((прайс[[#This Row],[наименование]]=база[наименование])*(база[Стоимость реализации]<>0)*база[количество])","v":0},{"$f":"SUM((прайс[[#This Row],[наименование]]=база[наименование])*(база[Итоговая стоимость закупа]))","v":0}]
[null,null,"Авагимов",null,null,"Кофе Нескафе Класик ст\\б 47.5гр (24шт)","шт",67,{"$f":"прайс[[#This Row],[Закуп]]+прайс[[#This Row],[Закуп]]*30%","v":87.1},{"$f":"SUM((прайс[[#This Row],[наименование]]=база[наименование])*(база[Стоимость закупа]<>0)*база[количество])-SUM((прайс[[#This Row],[наименование]]=база[наименование])*(база[Стоимость реализации]<>0)*база[количество])","v":0},{"$f":"SUM((прайс[[#This Row],[наименование]]=база[наименование])*(база[Итоговая стоимость закупа]))","v":0}]
[null,null,"Парфенова",null,null,"Кофе Нескафе Класик ст\\б 95гр (12шт)","шт",81,{"$f":"прайс[[#This Row],[Закуп]]+прайс[[#This Row],[Закуп]]*30%","v":105.3},{"$f":"SUM((прайс[[#This Row],[наименование]]=база[наименование])*(база[Стоимость закупа]<>0)*база[количество])-SUM((прайс[[#This Row],[наименование]]=база[наименование])*(база[Стоимость реализации]<>0)*база[количество])","v":0},{"$f":"SUM((прайс[[#This Row],[наименование]]=база[наименование])*(база[Итоговая стоимость закупа]))","v":0}]
[null,null,"Величко",null,null,"Кофе Якобс 150гр м\\у (9шт)","шт",100,{"$f":"прайс[[#This Row],[Закуп]]+прайс[[#This Row],[Закуп]]*30%","v":130},{"$f":"SUM((прайс[[#This Row],[наименование]]=база[наименование])*(база[Стоимость закупа]<>0)*база[количество])-SUM((прайс[[#This Row],[наименование]]=база[наименование])*(база[Стоимость реализации]<>0)*база[количество])","v":0},{"$f":"SUM((прайс[[#This Row],[наименование]]=база[наименование])*(база[Итоговая стоимость закупа]))","v":0}]
[null,null,"Кельдасов Знаменского",null,null,"Кофе Якобс 75гр м\\у (12шт)","шт",25,{"$f":"прайс[[#This Row],[Закуп]]+прайс[[#This Row],[Закуп]]*30%","v":32.5},{"$f":"SUM((прайс[[#This Row],[наименование]]=база[наименование])*(база[Стоимость закупа]<>0)*база[количество])-SUM((прайс[[#This Row],[наименование]]=база[наименование])*(база[Стоимость реализации]<>0)*база[количество])","v":0},{"$f":"SUM((прайс[[#This Row],[наименование]]=база[наименование])*(база[Итоговая стоимость закупа]))","v":0}]
[null,null,"Кельдасов Невкипелого"]
[null,null,"Кельдасов Артезианская"]
[null,null,"Кельдасов Круживная"]

{"sheet":"Накладная","index":3,"n_rows":11,"n_cols":5,"rows_kept":11,"cut":false,"hidden":false,"merged":[[0,0,0,4]]}
["накладная"]
[]
["дата",{"$f":"VLOOKUP(1,база[],2,FALSE)","v":"2017-01-19"}]
[]
["клиент",{"$f":"VLOOKUP(1,база[],4,FALSE)","v":"Погосов"},null,"менеджер",{"$f":"VLOOKUP(1,база[],3,FALSE)","v":"Роман"}]
[]
["товар",{"$f":"VLOOKUP(1,база[],5,FALSE)","v":"Ахмад черн 25п"}]
[]
["колличество",{"$f":"VLOOKUP(1,база[],7,FALSE)","v":50},{"$f":"VLOOKUP(1,база[],6,FALSE)","v":"шт"}]
[]
["цена",{"$f":"IF(VLOOKUP(1,база[],9,FALSE)=0,VLOOKUP(1,база[],12,FALSE),VLOOKUP(1,база[],9,FALSE))","v":11}]

{"sheet":"Остатки","index":4,"n_rows":4,"n_cols":2,"rows_kept":4,"cut":false,"hidden":false,"merged":[]}
["Названия строк","Максимум по полю Остаток"]
["Ахмад черн 25п",40]
["Гринфилд голден цейлон 25п",2]
["Общий итог",40]